Cogmind - Beta 13 @@@ ROGUE MODE // 2024.04.20 @ 23:24:30 Player: skittytittles Result: Self-destructed Performance ------------- Evolutions (1) 500 Regions Visited (2) 400 Robots Destroyed (15) 75 Value Destroyed (484) 484 Prototype IDs (1) 20 Alien Tech Used (0) 0 Bonus (0) 0 TOTAL SCORE: 1479 Bonus ------- None Cogmind --------- Core Integrity 82/400 Matter 117/300 Energy 80/100 System Corruption 0% Temperature Cool (64) Movement Core (300) Ox5 Location -9/Materials Parts ------- > --- POWER (1) -------- (None) > --- PROPULSION (4) --- (None) > --- UTILITY (2) ------ Medium Storage Unit > --- WEAPON (2) ------- Advanced Beam Cannon Hammer > --- INVENTORY (10) --- Large Storage Unit Visual Processing Unit Light Armor Plating Light Armor Plating Medium Laser Beam Rifle Beam Rifle Particle Gun Advanced Beam Cannon Light Cannon Peak State ------------ > --- POWER ------------ Light Ion Engine > --- PROPULSION ------- Aluminum Leg Aluminum Leg Aluminum Leg Aluminum Leg > --- UTILITY ---------- Medium Storage Unit Sensor Array > --- WEAPON ----------- Beam Rifle Advanced Beam Cannon > --- INVENTORY -------- Large Storage Unit Visual Processing Unit Light Armor Plating Medium Laser Beam Rifle Particle Gun Advanced Beam Cannon Light Cannon [Rating: 13] Favorites ----------- Power Light Ion Engine Engine Light Ion Engine Propulsion Aluminum Leg Leg Aluminum Leg Utility Sensor Array Device Sensor Array Storage Small Storage Unit Weapon Light Assault Rifle Energy Gun EM Pulse Gun Energy Cannon Advanced Beam Cannon Ballistic Gun Light Assault Rifle Ballistic Cannon Light Cannon Impact Weapon Hammer Build | -11 -10 -9 ------- Run | Yrd Mat Mat Slots Evolved 2 | . . 2 Power . | . . . Propulsion 2 | . . 2 Utility . | . . . Weapon . | . . . Parts Attached 21 | 6 12 3 Power 2 | 1 1 . Engine 2 | 1 1 . Core . | . . . Reactor . | . . . Propulsion 9 | 2 5 2 Treads . | . . . Leg 9 | 2 5 2 Wheel . | . . . Hover . | . . . Flight . | . . . Utility 3 | 1 2 . Device 1 | . 1 . Storage 2 | 1 1 . Processor . | . . . Hackware . | . . . Protection . | . . . Artifact . | . . . Weapon 7 | 2 4 1 Energy Gun 3 | 1 2 . Energy Cannon 1 | . 1 . Ballistic Gun 1 | 1 . . Ballistic Cannon 1 | . 1 . Launcher . | . . . Special Weapon . | . . . Impact Weapon 1 | . . 1 Slashing Weapon . | . . . Piercing Weapon . | . . . Special Melee Weapon . | . . . Unidentified Prototypes 1 | . 1 . Parts Lost 8 | . 2 6 Power 2 | . 1 1 Propulsion 4 | . . 4 Utility 1 | . . 1 Weapon 1 | . 1 . Highest Loss Streak 6 | . 2 6 To Critical Strikes . | . . . Average Slot Usage (%) 92 | . 95 81 Engine 12 | . 14 7 Leg 29 | . 28 32 Device 10 | . 11 8 Storage 13 | . 14 11 Energy Gun 12 | . 12 9 Energy Cannon 3 | . 1 11 Ballistic Gun 8 | . 11 . Ballistic Cannon 1 | . 1 . Naked Turns . | . . . Heaviest Build 21 | 13 21 21 Greatest Support 40 | 20 20 40 Greatest Overweight (x) 1 | 1 1 1 Average Overweight (x) . | . . . Largest Inventory Capacity 10 | 8 10 10 Average Capacity 8 | 7 8 10 Most Carried 10 | 1 10 10 Average Carried 5 | . 4 8 Final Capacity 10 | 8 10 10 Final Carried 10 | 1 10 10 Class Distribution -------------------- 82% | Mutant 17% | Scavenger-Mutant Dominant Class ---------------- Mutant | -10/Materials Scavenger-Mutant | -9/Materials Resources | -11 -10 -9 ----------- Run | Yrd Mat Mat Matter Collected 426 | 109 262 55 Remotely . | . . . Salvage Created 618 | . 308 310 Parts 34 | . 23 11 Haulers Intercepted . | . . . Recyclers Shooed . | . . . Parts Field Recycled . | . . . Retrieved Matter . | . . . Parts Self-Destructed . | . . . Prevented . | . . . Kills | -11 -10 -9 ------- Run | Yrd Mat Mat Combat Hostiles Destroyed 13 | . 7 6 Melee 1 | . . 1 Guns 7 | . 7 . Cannons 4 | . . 4 Classes Destroyed 5 | . 3 2 Watcher 2 | . 2 . Swarmer 2 | . 2 . Grunt 7 | . 5 2 Brawler 1 | . . 1 Sentry 3 | . . 3 Best Kill Streak 5 | . 4 5 Combat Bots Only 5 | . 3 5 Max Kills in Single Turn 2 | . 2 1 Gunslinging 1 | . 1 . Exploded . | . . . Melee 1 | . . 1 Uniques/NPCs Destroyed . | . . . Combat | -11 -10 -9 -------- Run | Yrd Mat Mat Hostile Shots Fired 128 | . 64 64 Missed 27 | . 17 10 Damage Taken 1404 | . 564 840 Core 453 | . 135 318 Absorbed by Shields . | . . . Core Remaining (%) 73 | 100 46 . Volleys Fired 57 | . 41 16 Largest 2 | . 2 2 Hottest 124 | . 70 124 Shots Fired 98 | . 66 32 Gun 82 | . 66 16 Cannon 16 | . . 16 Launcher . | . . . Special . | . . . Kinetic 41 | . 41 . Thermal 36 | . 4 32 Explosive . | . . . Electromagnetic 21 | . 21 . Robot Hit Streak 10 | . 6 10 Robot Miss Streak 4 | . 4 4 Penetration Max . | . . . Secondary Targets 3 | . 3 . Max Gunslinging Chain 1 | . 1 . Shots Hit Robots 66 | . 39 27 Core Hits 25 | . 18 7 Critical Kills 1 | . . 1 Critical Parts Destroyed 1 | . . 1 Critical Strikes 4 | . . 4 Burn 2 | . . 2 Smash 2 | . . 2 Melee Attacks 6 | . . 6 Impact 6 | . . 6 Slashing . | . . . Piercing . | . . . Sneak Attacks . | . . . Combat Hostiles . | . . . Follow-up Attacks . | . . . Damage Inflicted 960 | . 429 531 Guns 574 | . 429 145 Cannons 266 | . . 266 Explosions . | . . . Melee 120 | . . 120 Ramming . | . . . Kinetic 220 | . 220 . Thermal 436 | . 25 411 Explosive . | . . . Electromagnetic 184 | . 184 . Impact 120 | . . 120 Slashing . | . . . Piercing . | . . . Highest Corruption . | . . . Average Corruption . | . . . Corruption Purged . | . . . Corruption Blocked . | . . . Overload Shots . | . . . Overflow Damage 24 | . . 24 Projectiles . | . . . Explosions . | . . . Melee 24 | . . 24 Knockbacks . | . . . Impact . | . . . Kinetic . | . . . Secondary . | . . . Self-Inflicted Damage . | . . . Shots . | . . . Rammed . | . . . Targets Rammed . | . . . Kicked . | . . . Crushed . | . . . Highest Temperature 720 | . 140 720 Average Temperature 218 | . 58 379 Received Heat Transfer 609 | . 318 291 Effects 19 | . . 19 Energy Bleed 1 | . . 1 Interference 2 | . . 2 Matter Decay 5 | . . 5 Damage (minor) 3 | . . 3 Damage (major) 6 | . . 6 Damage (core) 2 | . . 2 Siege Activations . | . . . Robots Corrupted . | . . . Combat Hostiles . | . . . Parts Fried 1 | . 1 . Impact Corruptions 1 | . . 1 Robots Melted 1 | . . 1 Combat Hostiles 1 | . . 1 Parts Melted 6 | . . 6 Heat Transferred 1073 | . 74 999 Parts Sabotaged . | . . . Parts Stolen . | . . . Parts Stripped . | . . . Power Chain Reactions . | . . . Alert | -11 -10 -9 ------- Run | Yrd Mat Mat Peak Influence 232 | . 232 174 Initial 13 | . . 13 Average 114 | . 137 81 Maximum Alert Level 1 | . 1 . Low Security (%) 78 | 100 69 100 Level 1 21 | . 30 . Level 2 . | . . . Level 3 . | . . . Level 4 . | . . . Level 5 . | . . . High Security . | . . . Max Security . | . . . Squads Dispatched 2 | . 1 1 Investigation . | . . . Extermination . | . . . Reinforcement 2 | . 1 1 Assault . | . . . Garrison . | . . . Intercept . | . . . Searches Triggered . | . . . Construction Impeded . | . . . Haulers Reinforced . | . . . Active Scanning Responses . | . . . Cargo Convoy Interrupts . | . . . Stealth | -11 -10 -9 --------- Run | Yrd Mat Mat Distress Signals 1 | . 1 . Communications Jammed . | . . . Distress Signals . | . . . Times Spotted 21 | . 15 6 Peak Tracking Total 5 | . 5 4 Tactical Retreats 4 | . 2 2 Traps | -11 -10 -9 ------- Run | Yrd Mat Mat Traps Triggered . | . . . Indirectly . | . . . Trap Hack Attempts . | . . . Triggered . | . . . Disarmed . | . . . Reprogrammed . | . . . Reused . | . . . Traps Extracted . | . . . Installed . | . . . Triggered . | . . . Machines | -11 -10 -9 ---------- Run | Yrd Mat Mat Machines Disabled 1 | . . 1 Max in Single Turn 1 | . . 1 Machines Repaired . | . . . Machines Dismantled . | . . . Machines Sabotaged . | . . . Overloaded Fab Kills . | . . . Hacking | -11 -10 -9 --------- Run | Yrd Mat Mat Machines Accessed 3 | . 3 . Terminals 3 | . 3 . Fabricators . | . . . Repair Stations . | . . . Recycling Units . | . . . Scanalyzers . | . . . Garrison Access . | . . . Total Hacks 10 | . 10 . Successful 3 | . 3 . Failed 7 | . 7 . Catastrophic 1 | . 1 . Database Lockouts . | . . . Manual . | . . . Terminals 10 | . 10 . Fabricators . | . . . Repair Stations . | . . . Recycling Units . | . . . Scanalyzers . | . . . Garrison Access . | . . . Terminal Hacks 3 | . 3 . Locate Traps 1 | . 1 . Investigation Status 1 | . 1 . Zone Layout 1 | . 1 . Fabricator Hacks . | . . . Repair Station Hacks . | . . . Recycling Unit Hacks . | . . . Scanalyzer . | . . . Garrison Access Hacks . | . . . Unauthorized Hacks . | . . . Terminals . | . . . Fabricators . | . . . Repair Stations . | . . . Recycling Units . | . . . Scanalyzers . | . . . Garrison Access . | . . . Data Cores Recovered . | . . . Used . | . . . Hacking Detections 3 | . 3 . Full Trace Events . | . . . Feedback Events . | . . . Feedback Blocked . | . . . Robot Schematics Acquired . | . . . Robots Built . | . . . Authchips . | . . . Time . | . . . Total Robot Build Rating . | . . . Part Schematics Acquired . | . . . Parts Built . | . . . Authchips . | . . . Time . | . . . Total Part Build Rating . | . . . Parts Repaired . | . . . Time . | . . . Parts Recycled . | . . . Recycled Matter . | . . . Retrieved Matter . | . . . Retrieved Components . | . . . Parts Scanalyzed . | . . . Part Schematics Acquired . | . . . Parts Damaged . | . . . Bothacking | -11 -10 -9 ------------ Run | Yrd Mat Mat Used RIF Installer . | . . . Robots Hacked . | . . . Non-combat . | . . . Combat . | . . . Robot Hacks Applied . | . . . Relay Couplers Released . | . . . Fabnet Peak Effective % . | . . . Robots Rewired . | . . . Allies Hacked . | . . . Hacks Repelled . | . . . Allies | -11 -10 -9 -------- Run | Yrd Mat Mat Total Allies . | . . . Largest Group . | . . . Highest-Rated Group . | . . . Highest-Rated Ally . | . . . Total Orders . | . . . Ally Attacks . | . . . Total Damage . | . . . Kills . | . . . Allies Corrupted . | . . . Allies Melted . | . . . Intel | -11 -10 -9 ------- Run | Yrd Mat Mat Robot Analysis Total . | . . . Derelict Logs Recovered . | . . . Drone Launches . | . . . Drone Recoveries . | . . . Exploration | -11 -10 -9 ------------- Run | Yrd Mat Mat Turns Passed 683 | 53 481 149 Spaces Moved 358 | 37 279 42 Core 6 | 6 . . Treads . | . . . Legs 352 | 31 279 42 Wheels . | . . . Hover . | . . . Flight . | . . . Fastest Speed 50 | 50 120 120 Average Speed 123 | 110 124 126 Slowest Speed 190 | 120 190 190 Overloaded Moves . | . . . Propulsion Burnouts . | . . . Robots Hopped . | . . . Cave-ins Triggered . | . . . Exploration Rate (%) 20 | 3 54 3 Regions Visited 2 Branch Regions . Pre-discovered Areas . | . . . Known Exits Taken . | . . . Unknown Exits Taken 2 | 1 1 . Scrap Searched . | . . . Spaces Dug . | . . . Terrain Destroyed . | . . . Melee . | . . . Projectile . | . . . AOE . | . . . Terrain Rammed . | . . . Walls Destroyed . | . . . Machines Disabled . | . . . Actions | -11 -10 -9 --------- Run | Yrd Mat Mat Total 496 | 49 353 94 Wait 29 | . 4 25 Move 356 | 36 278 42 Hop . | . . . Pick Up 22 | 7 13 2 Fast Attach . | . . . Attach 11 | 6 3 2 Detach . | . . . Swap 10 | . 9 1 Drop 5 | . 5 . Fire 57 | . 41 16 Melee 6 | . . 6 Ram . | . . . Kick . | . . . Crush . | . . . Escape Stasis . | . . . Rewire . | . . . Trap . | . . . Miscellaneous . | . . . Route ------- -11/Scrapyard -10/Materials (discovered 2 exits: [*Mat] / [*Min]) -9/Materials History --------- Turn | Location | Event 36 | -11/Scrapyard | Discovered new exit (range 15) 54 | -11/Scrapyard | Entered Materials 306 | -10/Materials | Core integrity fell below 50% 343 | -10/Materials | Discovered new exit (range 16) 354 | -10/Materials | Build established: Mutant 486 | -10/Materials | Discovered new exit (range 11) 535 | -10/Materials | Entered another Materials area 535 | -9/Materials | Evolved 2 slots: Propulsion x2 655 | -9/Materials | Core integrity fell below 50% 684 | -9/Materials | Self-destructed Last Messages --------------- 00657_ Overheating: Med. Storage Unit damaged (-44). 00657_ Overheating: Beam Rifle damaged (-3). 00658_ Overheating: Energy bleed (-4). 00659_ Overheating: System interference. 00659_ Adv. Beam Cannon temporarily disabled. 00659_ Beam Rifle temporarily disabled. 00660_ Overheating: Matter decay (-31). 00660_ K-01 Serf collects debris. 00661_ Overheating: Matter decay (-46). 00663_ Overheating: Adv. Beam Cannon damaged (-6). 00664_ K-01 Serf collects debris. 00664_ Aluminum Leg destroyed. 00665_ Acquired Hammer. 00668_ K-01 Serf collects debris. 00670_ Overheating: Matter decay (-27). 00675_ G-34 Mercenary suffers critical hit (Smash). 00675_ Destroyed Aluminum Leg. 00675_ G-34 Mercenary system corrupted by crushing effect. 00681_ G-34 Mercenary suffers critical hit (Smash). 00681_ G-34 Mercenary destroyed. Map ----- +----------------------------------------------------+ | ????????????????????????????????????????????????? | | ????????????????????????????????????????????????? | | ????????????????????????????????????????????????? | | ????????????????????????????????????????????????? | | ????????????????????????????????????????????????? | | ????????????????????????????????????????????????? | | ????????????????????????????????????????????????? | | ????????????????????????????????????????????????? | | ????????????????????????????????????????????????? | | ????????????????????????????????????????????????? | | ????????????????????????????????????????????????? | | ????????????????????????????????????????????????? | | ????????????????????????????????????????????????? | | ????????????????????????????????????????????????? | | ????????????????????????????????????????????????? | | ????????????????????????????????????????????????? | | ????????????????????????????????????????????????? | | ????????????????????????????????????????????????? | | ????????????????????????????????????????????????? | | ????????????????????????????????????????????????? | | ????????????????????????????????????????????????? | | ????????????????????????????????????????????????? | | ????????????????????????????????????????????????? | | ??????????? ######################?????????????? | | ?????????? !=[% #?????????????? | | ?????????? =!%@ #?????????????? | | ?????????? !%% #?????????????? | | ?????????????##########+######;#####????????????? | | ?????????????????????????# %! #????????????? | | ?????????????????????????# =% #????????????? | | ?????????????????????????# " "[""" #????????????? | | ?????????????????????????# """ """ #????????????? | | ?????????????????????????# """ """ #????????????? | | ?????????????????????????# """ """ #????????????? | | ?????????????????????????# """ """ #????????????? | | ?????????????????????????# ??????????????? | | ?????????????????????????#########??????????????? | | ????????????????????????????????????????????????? | | ????????????????????????????????????????????????? | | ????????????????????????????????????????????????? | | | | | | | | | | | | | | | | | | | | | +----------------------------------------------------+ Best States ------------- Heat Dissipation 28 Energy Generation 10 Energy Capacity 250 Matter Stores 300 Matter Capacity 300 Sight Range 16 Robot Scan Range 14 Terrain Scan Density 10 Evasion (%) 55 Item Schematics ----------------- None Robot Schematics ------------------ None Fabricated ------------ Nothing Alien Tech Used ----------------- None Achievements -------------- None Challenges ------------ None Game ------ Seed FireNuclearPenetrator Manual? 0 Play Time 00:13:02 Cumulative 8.6 hours Start 2024.04.20 @ 23:13:14 End 2024.04.20 @ 23:24:30 Sessions 1 Manual Loads 0 Difficulty Rogue Special Mode None Game No. 9 Rogue 9 Adventurer 0 Explorer 0 Win Type - Total 0 Types 0/0/0/0/0/0/0/0/0 Lore% 11 Gallery% 13 Achievement% 16 Wizard Run 0 Options --------- Layout 0 ASCII 0 Keyboard 0 Movement Mouse Keybinds 0 Fullscreen 1 Font 18/SmallcapsGlow Map View 38x25 Zoom Use 100% Tactical HUD 1 Map Filters NONE Filters NONE Steam 1 RUN: 79cc2be1-e4f8-48d8-aab0-11492820ed13